bitfinex/quotes_ETHUSD_20220226
["timestamp","ask_amount","ask_price","bid_price","bid_amount"]
[1645853647987,4.94437337,2791.9,2791.8,1.01674891]
[1645853648588,1.44437337,2791.9,2791.8,1.01674891]
[1645853648788,0.44437337,2791.9,2791.8,1.01674891]
[1645853649287,0.14437337,2791.9,2791.8,1.01674891]
[1645853650290,0.00127337,2791.9,2791.8,1.01674891]
[1645853652144,3.50127337,2791.9,2791.8,0.64865557]
[1645853652344,3.50127337,2791.9,2791.2,0.00288355]
[1645853652345,4.8545,2791.8,2791.2,0.00288355]
[1645853652545,0.3545,2791.6,2791.1,0.02079307]
[1645853652744,0.4976,2791.5,2791.1,0.02079307]
[1645853652946,0.49887337,2791.5,2791.1,0.02079307]
[1645853653147,0.49887337,2791.5,2790.4,0.00288355]
[1645853653447,0.3545,2791.2,2790.4,0.00288355]
[1645853653846,0.6545,2791.2,2790.2,0.00288355]
[1645853654454,0.3545,2791.1,2790.2,0.00288355]
[1645853654652,0.3545,2791.1,2790.6,0.00517914]
[1645853655598,0.3545,2791.1,2790.2,0.00288355]
[1645853655803,0.3545,2791.1,2790.7,0.00517898]
[1645853656401,3.8545,2791.1,2790.7,0.00517898]
[1645853656602,4.8545,2791.1,2790.7,0.00517898]
[1645853656800,4.8545,2791.1,2790.2,0.00288355]
[1645853657001,1.3545,2791.1,2790.8,0.00517893]
[1645853657202,0.3545,2791.2,2790.8,0.00517893]
[1645853658000,0.3545,2791.2,2790.2,0.00288355]
[1645853658201,3.5,2791.1,2790.9,0.00517882]
[1645853658402,0.3545,2791.2,2790.9,0.00517882]
[1645853658640,3.5,2791.1,2790.9,0.00517882]
[1645853658845,4.8,2791.1,2790.9,0.00517882]
[1645853659053,3.6433,2791.0,2790.9,0.00517882]
[1645853659251,0.3545,2790.9,2790.2,0.00288355]
[1645853659448,3.8545,2790.8,2790.4,0.02070307]
[1645853659652,3.9978,2790.8,2790.4,0.02070307]
[1645853659850,1.7978,2790.8,2790.4,0.02070307]
[1645853660350,0.7978,2790.8,2790.1,0.00288355]
[1645853660550,0.7978,2790.8,2790.0,1.33144615]
[1645853660551,0.4433,2790.8,2790.0,1.33144615]
[1645853660848,0.6545,2791.0,2790.5,0.00517541]
[1645853661653,0.6545,2791.0,2790.1,0.00288355]
[1645853661854,0.6545,2791.0,2790.6,0.00517526]
[1645853662051,0.3,2791.0,2790.6,0.00517526]
[1645853662252,0.01035051,2790.5,2790.2,0.02070413]
[1645853662887,0.01035051,2790.5,2789.9,0.00288355]
[1645853663690,4.23555051,2791.3,2790.4,1.25485901]
[1645853663895,4.23555051,2791.3,2790.5,3.50288355]
[1645853663896,0.1433,2791.2,2790.5,3.50288355]
[1645853664092,0.00127337,2791.2,2790.5,3.5]
[1645853664292,0.00127337,2791.2,2790.4,0.00288355]
[1645853665293,1.19570811,2791.2,2790.4,0.00288355]
[1645853665493,0.4978,2791.1,2790.4,0.00288355]
[1645853665692,0.4978,2791.1,2789.9,1.13218355]
[1645853665693,0.49907337,2791.1,2789.9,1.13218355]
[1645853665892,0.79907337,2791.1,2789.9,1.13218355]
[1645853666740,0.79907337,2791.1,2790.4,0.00517552]
[1645853667741,0.79907337,2791.1,2789.9,1.13218355]
[1645853667941,0.79907337,2791.1,2790.5,0.00517553]
[1645853668545,0.9590666,2791.1,2790.5,0.00517553]
[1645853668942,0.9590666,2791.1,2789.9,0.00288355]
[1645853669142,0.9590666,2791.1,2790.5,0.00517557]
[1645853669987,0.9590666,2791.1,2789.9,0.00288355]
[1645853670389,0.9590666,2791.1,2790.5,0.00517557]
[1645853671192,0.3545,2790.9,2789.9,0.00288355]
[1645853671389,0.1433,2790.8,2789.9,0.00288355]
[1645853671592,0.1433,2790.8,2790.5,0.00517557]
[1645853672394,0.1433,2790.8,2789.9,0.00288355]
[1645853672797,2.38036766,2790.7,2790.5,0.00517545]
[1645853672995,10.15816766,2790.6,2790.5,0.00517545]
[1645853673195,24.07176856,2790.6,2790.5,0.00517545]
[1645853673396,0.3545,2790.3,2789.5,0.00288355]
[1645853673707,0.3545,2790.1,2789.1,0.00288355]
[1645853674002,0.3545,2789.9,2789.1,0.00288355]
[1645853674203,0.1433,2789.8,2788.9,0.00288355]
[1645853674400,0.3545,2789.7,2788.9,0.00288355]
[1645853674801,0.6545,2789.7,2788.9,0.00288355]
[1645853675006,3.9978,2789.6,2788.9,0.00288355]
[1645853675205,8.9978,2789.6,2789.3,0.00515747]
[1645853675403,3.9978,2789.6,2789.3,0.00515747]
[1645853675601,9.9978,2789.6,2789.3,0.00515747]
[1645853676001,9.9978,2789.6,2788.9,0.00288355]
[1645853676203,4.9978,2789.6,2788.9,0.00288355]
[1645853676402,1.3545,2789.6,2788.9,0.00288355]
[1645853676900,0.3545,2789.6,2788.9,0.00288355]
[1645853678604,0.60031366,2789.6,2788.9,0.00288355]
[1645853679204,3.8545,2789.5,2788.9,0.00288355]
[1645853679607,0.1434,2789.4,2788.9,0.00288355]
[1645853680007,0.1434,2789.4,2789.2,0.01214882]
[1645853680807,0.1434,2789.4,2789.2,0.007]
[1645853681267,0.1434,2789.4,2789.2,0.01214887]
[1645853682072,0.1434,2789.4,2789.2,0.007]
[1645853682274,0.014,2789.0,2788.9,0.00288355]
[1645853682473,0.014,2789.0,2788.7,0.02059858]
[1645853683274,0.014,2789.0,2788.5,1.19054988]
[1645853683476,0.014,2789.0,2788.7,0.00514934]
[1645853684577,0.014,2789.0,2788.5,1.04054988]
[1645853684778,0.014,2789.0,2788.7,0.00514934]
[1645853685800,0.014,2789.0,2788.5,1.04054988]
[1645853686004,0.014,2789.0,2788.7,0.00514934]
[1645853686408,0.4434,2789.7,2788.7,0.00514934]
[1645853686610,0.3545,2789.5,2788.7,0.00514934]
[1645853686806,3.85575,2789.6,2788.1,3.73679997]
[1645853686807,0.3545,2789.3,2788.2,0.00288355]
[1645853687006,0.2934,2789.3,2788.2,0.00288355]
[1645853687209,0.1434,2789.2,2789.1,0.00514898]
[1645853687607,0.63233252,2789.3,2789.1,0.00514898]
[1645853687807,0.4368,2789.3,2789.1,0.00514898]
[1645853688011,0.2934,2789.3,2788.5,0.00288355]
[1645853688311,0.1434,2789.4,2789.1,0.00514898]
[1645853689148,0.4979,2789.4,2789.1,0.00514898]
[1645853689347,1.78128544,2789.4,2788.2,0.00288355]
[1645853689549,1.78128544,2789.4,2789.1,0.00514893]
[1645853689750,0.4979,2789.4,2789.1,0.00514893]
[1645853689948,0.1434,2789.4,2789.1,0.00514893]
[1645853690352,2.2115,2789.7,2788.2,3.83313127]
[1645853690353,0.1434,2789.5,2788.2,3.83313127]
[1645853690559,1.3549,2789.7,2788.3,0.1434]
[1645853690753,1.3549,2789.7,2789.1,1.32259262]
[1645853690754,1.21277337,2789.7,2789.1,1.32259262]
[1645853690957,0.00127337,2789.7,2789.1,1.32259262]
[1645853691552,0.00127337,2789.7,2789.2,3.8545]
[1645853691753,0.00127337,2789.7,2789.2,4.8088]
[1645853691955,0.00127337,2789.7,2789.2,6.0053]
[1645853692531,0.00127337,2789.7,2789.4,0.3545]
[1645853692730,0.00127337,2789.7,2789.5,1.0088]
[1645853692930,0.00127337,2789.7,2789.5,0.8655]
[1645853693134,0.00127337,2789.7,2789.6,1.09595637]
[1645853693530,0.00127337,2789.7,2789.6,4.59595637]
[1645853693728,0.00127337,2789.7,2789.6,1.09595637]
[1645853694332,0.00127337,2789.7,2789.6,1.45045637]
[1645853694531,0.00127337,2789.7,2789.6,2.60705637]
[1645853694734,0.00127337,2789.7,2789.6,2.25255637]
[1645853696950,0.00127337,2789.7,2789.2,1.78067517]
[1645853697151,0.00127337,2789.7,2789.2,1.7778]
[1645853697952,0.00514821,2789.6,2789.2,1.7778]
[1645853698953,0.00127337,2789.7,2789.2,1.7778]
[1645853699155,0.00514826,2789.5,2789.2,1.7778]
[1645853699453,0.00514826,2789.5,2789.0,1.18937517]
[1645853700202,0.00127337,2789.7,2789.4,1.12301917]
[1645853701304,0.00127337,2789.7,2789.1,0.00287517]
[1645853701505,0.00127337,2789.7,2789.0,1.1865]
[1645853701506,0.00642147,2789.7,2789.0,1.1865]
[1645853702404,0.00642147,2789.7,2789.5,1.30749603]
[1645853702607,0.30868451,2789.3,2789.1,0.00287517]
[1645853702809,0.30868451,2789.3,2788.9,0.00287517]
[1645853703007,0.30868451,2789.3,2788.8,3.235]
[1645853703643,0.30868451,2789.3,2788.8,3.3784]
[1645853703840,0.30868451,2789.3,2788.9,1.22194302]
[1645853704047,0.00514862,2789.2,2788.9,1.22194302]
[1645853705050,0.30868451,2789.3,2788.9,1.22194302]
[1645853705348,0.00514862,2789.2,2788.8,2.8805]
[1645853706151,0.30868451,2789.3,2788.8,2.8805]
[1645853706348,0.00514867,2789.1,2788.8,2.8805]
[1645853706551,0.00514867,2789.1,2788.7,1.09207585]
[1645853706552,0.00514867,2789.1,2788.7,1.09495102]
[1645853706750,0.00514867,2789.1,2788.7,1.09207585]
[1645853707406,0.30868451,2789.3,2788.7,1.09207585]
[1645853707595,0.00227755,2789.0,2788.7,1.09207585]
[1645853708396,0.30868451,2789.3,2788.7,1.09207585]
[1645853708698,0.00227755,2789.0,2788.7,1.09207585]
[1645853709499,0.00227755,2789.0,2788.7,1.23547585]
[1645853709698,0.60868451,2789.3,2788.7,0.1434]
[1645853709899,0.00515263,2789.0,2788.6,0.00802859]
[1645853710100,0.00515263,2789.0,2788.6,0.00515342]
[1645853710698,0.00515263,2789.0,2788.6,1.2436928]
[1645853710998,0.60868451,2789.3,2788.6,1.23853938]
[1645853711246,0.60868451,2789.3,2788.6,1.24369276]
[1645853711247,0.00515268,2788.9,2788.6,1.24369276]
[1645853711842,0.00515268,2788.9,2788.6,0.00515338]
[1645853712250,3.8545,2789.2,2788.4,1.15847517]
[1645853712449,0.00515273,2788.9,2788.6,0.00515334]
[1645853713247,0.3,2789.0,2788.4,0.00287517]
[1645853713451,0.3,2789.1,2788.6,0.00288267]
[1645853713647,1.65899012,2789.0,2788.6,0.00288267]
[1645853713853,0.3,2789.0,2788.6,0.00288267]
[1645853714048,0.1434,2789.1,2788.6,0.00288267]
[1645853714251,1.51558438,2789.0,2788.6,0.00288267]
[1645853714451,1.51558438,2789.0,2788.3,0.00287517]
[1645853714752,1.51558438,2789.0,2788.6,0.00288267]
[1645853714753,1.81558438,2789.0,2788.6,0.00288267]
[1645853714992,1.51557876,2788.9,2788.6,0.00288267]
[1645853715394,1.4434,2789.1,2788.6,0.00288267]
[1645853715591,1.51557616,2789.0,2788.3,0.00287517]
[1645853715992,1.52073213,2789.0,2788.6,0.00515677]
[1645853716196,1.51557616,2788.9,2788.6,0.00515677]
[1645853716797,0.00515597,2789.0,2788.6,0.00515677]
[1645853716998,0.3,2789.1,2788.3,0.00287517]
[1645853717198,1.51550232,2789.0,2788.3,0.00287517]
[1645853717400,0.00515608,2788.9,2788.6,1.09019488]
[1645853717998,1.51557053,2788.8,2788.6,1.09019488]
[1645853718199,0.60868451,2789.3,2788.6,1.08503819]
[1645853718400,0.60868451,2789.3,2788.6,1.09019488]
[1645853718401,0.00515608,2788.9,2788.6,1.09019488]
[1645853718652,0.00515608,2788.9,2788.6,0.00515669]
[1645853719252,0.30995788,2789.3,2788.3,0.00287517]
[1645853719455,1.51551007,2789.2,2788.3,0.00287517]
[1645853719652,1.51551007,2789.2,2788.6,0.00515669]
[1645853719653,0.00515608,2788.9,2788.6,0.00515669]
[1645853720456,0.30995788,2789.3,2788.5,1.18062729]
[1645853720657,1.51550125,2789.2,2788.5,1.18062729]
[1645853720857,1.51550125,2789.2,2788.6,0.00515669]
[1645853720858,0.00515608,2788.9,2788.6,0.00515669]
[1645853721056,1.51550125,2788.8,2788.6,0.00515669]
[1645853721458,0.00515608,2788.9,2788.6,0.00515669]
[1645853721858,0.3,2789.2,2788.5,1.18062729]
[1645853722059,0.0051561,2788.9,2788.6,0.00515664]
[1645853722914,5.11263464,2789.3,2788.3,0.00287517]
[1645853722915,0.3,2789.2,2788.3,0.00287517]
[1645853723216,0.00515608,2788.9,2788.6,0.00515669]
[1645853723814,0.00401539,2788.9,2788.6,0.00515669]
[1645853724218,1.51554028,2789.2,2788.3,1.33966757]
[1645853724415,1.81554028,2789.2,2788.3,1.33966757]
[1645853724616,1.51554028,2789.1,2788.3,1.33966757]
[1645853725517,1.51554028,2789.1,2788.6,0.00288017]
[1645853726139,1.51554028,2789.1,2788.3,1.33390723]
[1645853726341,1.51554028,2789.1,2788.2,1.3126]
[1645853726342,3.5,2789.0,2788.2,1.1692]
[1645853726541,1.51554028,2788.9,2788.2,1.1692]
[1645853727944,1.51781856,2788.8,2788.2,1.1692]
[1645853728144,0.00227828,2788.8,2788.1,1.30847478]
[1645853728948,1.51562542,2789.0,2788.1,1.30847478]
[1645853729147,0.0022782,2788.8,2788.1,1.30847478]
[1645853729353,0.0022782,2788.8,2788.1,1.81947478]
[1645853730192,0.00127337,2789.0,2788.1,1.81947478]
[1645853730397,0.00515593,2788.8,2788.3,0.0051569]
[1645853731397,0.00127337,2789.0,2788.1,1.81947478]
[1645853731598,0.00515601,2788.8,2788.4,0.0051568]
[1645853731999,0.00515601,2788.8,2788.4,0.00430483]
[1645853732397,0.00515601,2788.8,2788.6,1.18011491]
[1645853732597,0.00127337,2789.0,2788.6,1.18011491]
[1645853736349,0.00515603,2788.9,2788.6,1.18011491]
[1645853736750,0.00515603,2788.9,2788.6,5.19111491]
[1645853736946,0.00515603,2788.9,2788.7,7.1717]
[1645853737146,0.00515603,2788.9,2788.8,4.011]
[1645853737411,0.00127337,2789.0,2788.8,4.011]
[1645853737598,0.00127337,2789.0,2788.9,3.5]
[1645853738399,0.00127337,2789.0,2788.8,7.9825]
[1645853738602,7.337e-05,2789.0,2788.9,4.1545]
[1645853738803,1.2472,2790.4,2788.9,4.1545]
[1645853738804,0.1434,2790.5,2789.1,0.3545]
[1645853739004,1.51502722,2790.4,2789.5,0.3545]
[1645853739303,7.45,2791.0,2789.5,0.3545]
[1645853739304,1.51502722,2790.3,2789.7,11.1745]
[1645853739501,8.11916409,2791.0,2790.3,1.2402431]
[1645853739705,0.66916409,2790.8,2790.3,1.2402431]
[1645853739905,0.66916409,2790.6,2790.3,1.2402431]
[1645853740100,1.51483434,2790.5,2790.3,1.2402431]
[1645853740300,2.18399843,2790.5,2790.3,1.2402431]
[1645853740604,5.90106972,2790.4,2790.3,4.31e-05]
[1645853740802,5.90106972,2790.4,2789.6,1.15970948]
[1645853740803,2.42431305,2790.2,2789.6,1.15970948]
[1645853741004,1.01687369,2790.0,2789.6,1.15970948]
[1645853741244,2.47720803,2789.9,2789.6,1.15970948]
[1645853741446,1.51483434,2789.8,2789.6,1.15970948]
[1645853742050,2.17720803,2789.8,2789.6,1.15970948]
[1645853742452,2.17720803,2789.7,2789.6,1.15970948]
[1645853742850,1.51483434,2789.7,2789.6,1.15970948]
[1645853743051,1.65813434,2789.7,2789.6,1.15970948]
[1645853744049,2.32103642,2789.7,2789.6,1.15970948]
[1645853744249,2.17773642,2789.7,2789.6,1.15970948]
[1645853744452,2.17773642,2789.7,2789.6,9.48e-06]
[1645853744453,8.37379926,2789.7,2789.6,9.48e-06]
[1645853744651,9.17371502,2789.7,2789.0,0.0028638]
[1645853744921,5.0,2789.3,2789.0,0.0028638]
[1645853745111,1.65823434,2789.2,2788.8,7.1743638]
[1645853745306,1.65823434,2789.2,2788.8,7.1715]
[1645853745508,1.95823434,2789.2,2788.8,7.1715]
[1645853745708,2.12138955,2789.2,2788.8,7.1715]
[1645853746207,2.47588955,2789.2,2788.8,6.77756369]
[1645853746411,2.17764161,2789.1,2788.8,6.77756369]
[1645853746608,0.1434,2789.0,2788.8,6.77756369]
[1645853746811,1.51483434,2788.9,2788.8,6.77756369]
[1645853747011,1.81483434,2788.9,2788.8,6.77756369]
[1645853749062,1.81483434,2788.9,2788.8,3.77756369]
[1645853749063,10.97764161,2788.9,2788.8,3.77756369]
[1645853749259,0.3545,2788.8,2788.2,0.0028638]
[1645853749459,0.01269201,2788.3,2788.1,0.0028638]
[1645853749661,1.51483434,2788.2,2788.1,0.0028638]
[1645853749860,2.16933434,2788.2,2787.9,0.02764691]
[1645853750063,1.51483434,2788.1,2787.9,0.02764691]
[1645853750462,3.5,2788.0,2787.9,0.02764691]
[1645853750661,1.81483434,2788.0,2787.9,0.007]
[1645853751060,2.12109081,2788.0,2787.9,0.007]
[1645853751262,23.24054668,2788.0,2787.4,0.0028638]
[1645853751464,23.24054668,2788.0,2786.7,0.007]
[1645853751465,1.14140869,2787.3,2786.7,0.007]
[1645853751663,1.86933434,2787.2,2786.0,5.4966654]
[1645853751866,1.51483434,2787.1,2786.0,5.4966654]
[1645853752065,1.51483434,2787.1,2786.9,0.00288107]
[1645853752541,5.0166673,2787.0,2786.9,0.00288107]
[1645853752938,6.3166673,2787.0,2786.9,0.00288107]
[1645853753136,6.3166673,2787.0,2786.0,0.1098654]
[1645853753137,0.3545,2786.9,2786.0,0.1098654]
[1645853753436,0.3545,2786.9,2785.5,1.1971]
[1645853753437,1.28004271,2786.5,2785.5,1.1971]
[1645853753738,1.28004271,2786.5,2785.3,0.49269997]
[1645853753935,1.28004271,2786.5,2785.3,0.44269997]
[1645853754534,1.28004271,2786.5,2785.3,0.08819997]
[1645853756851,1.28004271,2786.5,2785.8,0.00515112]
[1645853757958,1.28004271,2786.5,2785.5,1.25203]
[1645853758156,1.28004271,2786.5,2786.0,0.00515086]
[1645853758957,1.28004271,2786.5,2785.8,0.00285489]
[1645853759156,1.28004271,2786.5,2785.7,0.8974719]
[1645853759356,1.28004271,2786.5,2786.1,0.00515076]
[1645853760298,1.28004271,2786.5,2785.8,0.00285489]
[1645853760606,1.28004271,2786.5,2786.2,0.00515071]
[1645853760809,1.28004271,2786.5,2786.3,0.511]
[1645853761104,1.28004271,2786.5,2786.3,0.461]
[1645853761307,1.28004271,2786.5,2786.3,0.8155]
[1645853761706,1.28004271,2786.5,2786.3,2.61500061]
[1645853762103,1.14140869,2787.3,2786.5,0.8971967]
[1645853762304,3.5,2787.2,2786.4,0.00285489]
[1645853762506,0.4979,2787.1,2786.3,0.00515061]
[1645853762703,0.3545,2786.9,2786.1,0.00285489]
[1645853762903,0.1434,2786.9,2786.7,0.00515019]
[1645853763504,4.2979,2786.9,2786.7,0.00515019]
[1645853763751,3.5,2786.8,2786.7,0.00515019]
[1645853763951,0.4979,2786.7,2785.7,0.00285489]
[1645853764154,0.7979,2786.7,2785.7,0.00285489]
[1645853764362,1.06388972,2786.0,2785.7,0.00285489]
[1645853764557,1.06388972,2786.0,2785.5,0.00285489]
[1645853764756,1.06388972,2786.0,2785.1,2.17145489]
[1645853764955,5.00728972,2786.0,2785.2,0.00285489]
[1645853765156,1.36388972,2786.0,2785.2,0.00285489]
[1645853765358,5.21838972,2786.0,2785.5,0.00515474]
[1645853765560,0.511,2785.9,2785.5,0.00515474]
[1645853765762,1.66465,2785.9,2785.5,0.00515474]
[1645853765958,1.66465,2785.9,2785.1,0.05310941]
[1645853765959,3.8545,2785.8,2785.1,0.05310941]
[1645853766157,0.10621882,2785.0,2784.8,0.00285489]
[1645853766360,0.10621882,2785.0,2784.4,0.0501]
[1645853766757,0.10621882,2785.0,2784.6,3.7674269]
[1645853766961,1.27315474,2784.9,2784.6,3.7674269]
[1645853767158,0.10621882,2785.0,2784.6,3.7674269]
[1645853768605,0.10621882,2785.0,2784.6,4.1219269]
[1645853768807,0.10621882,2785.0,2784.7,3.8545]
[1645853769007,0.5,2784.8,2784.7,0.3545]
[1645853769205,0.10621882,2785.0,2784.7,0.3545]
[1645853770007,0.10621882,2785.0,2784.8,1.25222]
[1645853770207,0.10621882,2785.0,2784.8,0.3545]
[1645853771012,0.10621882,2785.0,2784.7,0.35964036]
[1645853771271,0.10621882,2785.0,2784.6,5.6627895]
[1645853771473,0.10621882,2785.0,2784.8,0.00514031]
[1645853772072,0.10621882,2785.0,2784.6,4.62032981]
[1645853772275,0.10621882,2785.0,2784.6,4.97482981]
[1645853772673,0.10621882,2785.0,2784.6,5.97242981]
[1645853772872,0.10621882,2785.0,2784.6,4.62032981]
[1645853773073,0.10621882,2785.0,2784.7,0.9976]
[1645853774572,0.1306462,2785.0,2784.7,0.9976]
[1645853775007,0.1306462,2785.0,2784.7,0.00513672]
[1645853776009,0.1306462,2785.0,2784.6,4.1219269]
[1645853776211,0.1306462,2785.0,2784.7,0.90285672]
[1645853776608,0.00513578,2785.2,2784.9,5.3545]
[1645853776813,0.00513578,2785.2,2785.1,5.0]
[1645853777009,0.00513578,2785.2,2785.1,5.511]
[1645853777210,1.06388972,2786.0,2785.1,1.5086]
[1645853777410,1.06388972,2786.0,2785.2,0.00285489]
[1645853777614,0.00513581,2785.3,2785.2,0.00285489]
[1645853777810,0.00513581,2785.3,2785.2,0.3545]
[1645853778011,0.00513581,2785.3,2785.2,1.3521]
[1645853778411,1.06388972,2786.0,2785.2,1.3521]
[1645853778651,1.06388972,2786.0,2785.3,5.0]
[1645853778652,0.00513571,2785.4,2785.3,5.0]
[1645853778857,0.00513571,2785.4,2785.3,6.16835489]
[1645853779054,0.00513571,2785.4,2785.3,1.1655]
[1645853779556,1.06388972,2786.0,2785.3,0.897531]
[1645853779757,0.00496615,2785.5,2785.4,0.3545]
[1645853780358,0.00496615,2785.5,2785.4,0.2545]
[1645853780557,0.00496615,2785.5,2785.3,1.197531]
[1645853780759,1.06388972,2786.0,2785.2,2.85566]
[1645853780957,0.00496605,2785.6,2785.3,0.3545]
[1645853781158,0.00496605,2785.6,2785.3,0.65735489]
[1645853781464,0.00496605,2785.6,2785.3,1.5520356]
[1645853782062,1.06388972,2786.0,2785.6,11.1745]
[1645853782263,1.06388972,2786.0,2785.7,1.40837]
[1645853782522,1.06388972,2786.0,2785.8,1.551856]
[1645853782725,0.87292785,2786.0,2785.8,2.362856]
[1645853783325,0.87292785,2786.0,2785.7,1.89497]
[1645853783326,0.87292785,2786.0,2785.7,0.9976]
[1645853783527,0.87292785,2786.0,2785.6,0.3]
[1645853783528,0.87741464,2786.0,2785.5,0.00285489]
[1645853783726,0.87741464,2786.0,2785.3,0.00285489]
[1645853784032,0.87741464,2786.0,2785.4,0.8975319]
[1645853784425,0.87292785,2786.0,2785.4,0.8975319]
[1645853784629,0.87292785,2786.0,2785.6,2.1492138]
[1645853784630,0.00448697,2785.8,2785.6,2.1492138]
[1645853785026,0.00448697,2785.8,2785.6,3.4468138]
[1645853785327,0.00448697,2785.8,2785.6,0.3545]
[1645853785728,0.87292785,2786.0,2785.6,0.3545]
[1645853785930,0.00448697,2785.8,2785.6,0.3545]
[1645853786548,0.00448697,2785.8,2785.5,0.511]
[1645853786749,0.87292785,2786.0,2785.4,0.9976]
[1645853786954,0.87292785,2786.0,2785.3,1.79786429]
[1645853787155,0.00455628,2785.8,2785.3,1.79786429]
[1645853787355,0.00455628,2785.8,2785.3,0.00285489]
[1645853787554,0.00455628,2785.8,2785.1,3.59012]
[1645853788060,0.87292785,2786.0,2785.1,3.59012]
[1645853788254,0.87292785,2786.0,2785.2,0.00285489]
[1645853788255,0.0045565,2785.6,2785.2,0.00285489]
[1645853788455,0.0045565,2785.6,2785.3,0.8975748]
[1645853789256,0.87292785,2786.0,2785.3,0.8975748]
[1645853789455,0.87292785,2786.0,2785.3,0.90042969]
[1645853789456,0.0045565,2785.6,2785.3,0.90042969]
[1645853789657,0.0045565,2785.6,2785.3,1.7085748]
[1645853789905,0.0045565,2785.6,2785.4,0.89751]
[1645853790396,0.02865327,2785.7,2785.5,0.9976]
[1645853790596,0.004547,2785.6,2785.5,0.9976]
[1645853790999,0.02865327,2785.7,2785.6,6.0]
[1645853791205,0.02865327,2785.7,2785.6,16.7475]
[1645853791407,0.02865327,2785.7,2785.6,27.5675]
[1645853791605,0.87292785,2786.0,2785.6,27.5675]
[1645853791804,0.87292785,2786.0,2785.8,7.1490466]
[1645853792004,0.87292785,2786.0,2785.9,0.511]
[1645853792202,0.87292785,2786.0,2785.9,0.811]
[1645853792603,1.19140868,2787.3,2785.9,4.311]
[1645853792803,1.51669097,2787.2,2786.0,5.00285489]
[1645853793003,1.51669097,2787.2,2786.1,4.01385489]
[1645853793204,1.51669097,2787.2,2786.2,0.00285489]
[1645853793404,1.51669097,2787.2,2786.3,0.511]
[1645853793651,1.14140869,2787.3,2786.3,0.51385489]
[1645853793852,1.14140869,2787.3,2786.3,9.01385489]
[1645853794053,1.14140869,2787.3,2786.3,15.18835489]
[1645853794259,0.00513417,2786.9,2786.3,16.48835489]
[1645853794651,0.00513417,2786.9,2786.6,1.8947346]
[1645853794853,0.00513417,2786.9,2786.7,1.5086]
[1645853795254,1.14140869,2787.3,2786.7,6.56018]
[1645853795454,1.14140869,2787.3,2786.8,5.3545]
[1645853795655,1.14140869,2787.3,2787.0,0.3545]
[1645853795853,1.14140869,2787.3,2787.1,9.011]
[1645853796054,1.14140869,2787.3,2787.2,3.5]
[1645853796257,1.14140869,2787.3,2787.2,4.011]
[1645853797411,1.14140869,2787.3,2787.2,0.511]
[1645853799707,1.16449352,2787.3,2787.2,0.511]
[1645853800308,1.16449352,2787.3,2787.2,4.1544]
[1645853800511,1.16449352,2787.3,2787.2,0.6544]
[1645853800710,1.16449352,2787.3,2787.2,0.511]
[1645853802758,1.16449352,2787.3,2786.4,0.511]
[1645853802759,0.53539999,2787.1,2786.4,0.511]
[1645853803053,0.53539999,2787.1,2786.3,0.00285489]
[1645853803054,0.88989999,2787.1,2786.3,0.00285489]
[1645853803856,0.005132,2787.0,2786.3,0.00285489]
[1645853804456,0.005132,2787.0,2786.1,0.25285489]
[1645853804659,0.005132,2787.0,2786.1,0.00285489]
[1645853804917,0.88989999,2787.1,2786.0,0.08819997]
[1645853805208,0.00513187,2787.0,2786.0,0.08819997]
[1645853806010,0.88989999,2787.1,2786.0,0.08819997]
[1645853806313,0.00513183,2787.0,2786.0,0.08819997]
[1645853806512,0.3545,2786.9,2786.0,0.08819997]
[1645853807511,0.35963178,2787.0,2786.0,0.08819997]
[1645853807913,3.85963178,2787.0,2786.0,0.08819997]
[1645853808113,0.35963178,2787.0,2786.0,0.08819997]
[1645853808511,0.4979,2787.0,2786.0,0.08819997]
[1645853808762,0.50303183,2787.0,2786.0,0.08819997]
[1645853808963,0.3545,2786.8,2785.9,0.00285489]
[1645853809167,0.3545,2785.9,2785.6,0.00285489]
[1645853809371,0.3545,2785.9,2785.5,0.02053833]
[1645853809769,0.3545,2785.9,2785.1,0.65735489]
[1645853809974,0.3545,2785.9,2785.4,0.00513416]
[1645853810270,0.3545,2786.5,2785.4,0.00513416]
[1645853810672,0.3545,2785.9,2785.4,0.00513416]
[1645853810870,0.3545,2785.9,2785.2,0.00285489]
[1645853811071,0.3545,2785.9,2785.4,0.0243375]
[1645853811470,0.3545,2785.9,2785.3,0.4353375]
[1645853811875,0.3545,2786.4,2785.3,0.4353375]
[1645853812073,0.1434,2786.3,2785.4,0.00285489]
[1645853812528,0.3545,2786.4,2785.3,0.511]
[1645853812725,3.1886,2786.6,2785.4,0.51385489]
[1645853812726,0.3545,2786.5,2785.4,0.51385489]
[1645853814526,0.3545,2786.5,2785.4,0.00285489]
[1645853814527,0.3545,2785.5,2785.4,0.00285489]
[1645853814726,0.3545,2785.5,2785.3,0.00513464]
[1645853814727,0.6545,2785.5,2785.3,0.00513464]
[1645853814936,0.8128527,2785.5,2785.3,0.00513464]
[1645853815129,0.4981,2785.4,2785.3,0.00513464]
[1645853815728,0.3545,2785.2,2785.0,7.1812]
[1645853815926,0.3545,2785.2,2785.0,0.0001]
[1645853815927,0.4981,2785.2,2785.0,0.0001]
[1645853816169,3.8545,2785.1,2784.6,3.77848557]
[1645853816569,4.8545,2785.1,2784.6,3.77848557]
[1645853816768,0.1436,2785.0,2784.6,3.7674269]
[1645853816969,0.1436,2785.0,2784.6,1.8105269]
[1645853817271,1.7055028,2784.8,2784.7,0.00276452]
[1645853817470,1.8491028,2784.8,2784.7,0.00276452]
[1645853818072,1.8491028,2784.8,2784.6,1.8105269]
[1645853818273,1.8491028,2784.8,2784.6,1.81566516]
[1645853818472,5.3491028,2784.8,2784.6,1.81566516]
[1645853818874,2.8491028,2784.8,2784.6,1.81566516]
[1645853819276,2.8491028,2784.8,2784.6,1.8105269]
[1645853819476,2.8491028,2784.8,2784.6,0.00513831]
[1645853819678,2.8491028,2784.8,2784.6,3.831e-05]
[1645853819679,9.49229421,2784.7,2784.6,3.831e-05]
[1645853819910,9.18619174,2784.7,2784.6,3.831e-05]
[1645853820315,4.63430539,2784.7,2784.6,3.831e-05]
[1645853820613,4.63430539,2784.7,2784.4,0.0501]
[1645853820614,1.83644437,2784.7,2784.4,0.0501]
[1645853820815,0.6545,2784.7,2784.4,0.0501]
[1645853821414,0.3545,2784.5,2784.4,0.0501]
[1645853821615,0.3545,2784.5,2784.4,0.0001]
[1645853822613,0.21012001,2784.6,2784.4,0.0001]
[1645853822818,2.0,2785.0,2784.4,0.0001]
[1645853823647,2.3545,2785.0,2784.4,0.0001]
[1645853823854,2.0,2785.0,2784.4,0.0001]
[1645853824055,2.0,2785.0,2784.4,0.8980049]